fUST/lending_fUST_20240824
["ID","MTS","AMOUNT","RATE_DAILY","PERIOD"]
[335806952,1724497865787,-1059.08,0.00014246,2]
[335806953,1724497865797,-500.0,0.00014246,2]
[335806954,1724497865806,-500.0,0.00014246,2]
[335806955,1724497865815,-591.82,0.00014246,2]
[335806956,1724497865825,-581.2,0.00014246,2]
[335806957,1724497865834,-500.0,0.00014246,2]
[335806958,1724497865843,-151.0,0.00014246,2]
[335806959,1724497865858,-151.0,0.00014246,2]
[335806960,1724497865869,-151.0,0.00014246,2]
[335806961,1724497865880,-151.924538,0.00014246,2]
[335806962,1724497865890,-788.02,0.00014246,2]
[335806963,1724497865899,-500.0,0.00014246,2]
[335806964,1724497865908,-276.413277,0.00014246,2]
[335806965,1724497865917,-276.413277,0.00014246,2]
[335806966,1724497865927,-276.413277,0.00014246,2]
[335806967,1724497865938,-571.02,0.00014246,2]
[335806968,1724497865950,-276.413277,0.00014246,2]
[335806969,1724497865962,-276.413277,0.00014246,2]
[335806970,1724497865972,-276.413277,0.00014246,2]
[335806971,1724497865981,-500.0,0.00014246,2]
[335806972,1724497865992,-500.0,0.00014246,2]
[335806973,1724497866001,-788.39,0.00014246,2]
[335806974,1724497866010,-501.54686121,0.00014246,2]
[335806975,1724497866019,-500.0,0.00014246,2]
[335806976,1724497866028,-500.0,0.00014246,2]
[335806977,1724497866038,-500.0,0.00014246,2]
[335806978,1724497866048,-500.0,0.00014246,2]
[335806979,1724497866057,-500.0,0.00014246,2]
[335806980,1724497866067,-500.0,0.00014246,2]
[335806981,1724497866076,-743.45,0.00014246,2]
[335806982,1724497866085,-500.0,0.00014246,2]
[335806983,1724497866093,-500.0,0.00014246,2]
[335806984,1724497866103,-500.0,0.00014246,2]
[335806985,1724497866111,-500.0,0.00014246,2]
[335806986,1724497866121,-566.98,0.00014246,2]
[335806987,1724497866130,-735.26,0.00014246,2]
[335806988,1724497866140,-671.5,0.00014246,2]
[335806989,1724497866150,-500.0,0.00014246,2]
[335806990,1724497866160,-225.714086,0.00014246,2]
[335806991,1724497866169,-225.714086,0.00014246,2]
[335806992,1724497866179,-225.714086,0.00014246,2]
[335806993,1724497866188,-2199.63,0.00014246,2]
[335806994,1724497866198,-225.714086,0.00014246,2]
[335806995,1724497866207,-225.714086,0.00014246,2]
[335806996,1724497866216,-225.714086,0.00014246,2]
[335806997,1724497866226,-500.0,0.00014246,2]
[335806998,1724497866236,-480.22502733,0.00014246,2]
[335806999,1724497866246,-500.0,0.00014246,2]
[335807000,1724497866256,-500.0,0.00014246,2]
[335807001,1724497866265,-866.78,0.00014246,2]
[335807002,1724497866275,-500.0,0.00014246,2]
[335807003,1724497866284,-500.0,0.00014246,2]
[335807004,1724497866293,-500.0,0.00014246,2]
[335807005,1724497866303,-500.0,0.00014246,2]
[335807006,1724497866313,-687.41,0.00014246,2]
[335807007,1724497866322,-500.0,0.00014246,2]
[335807008,1724497866333,-500.0,0.00014246,2]
[335807009,1724497866342,-500.0,0.00014246,2]
[335807010,1724497866352,-500.0,0.00014246,2]
[335807011,1724497866361,-500.0,0.00014246,2]
[335807012,1724497866370,-500.0,0.00014246,2]
[335807013,1724497866380,-500.0,0.00014246,2]
[335807014,1724497866389,-500.0,0.00014246,2]
[335807015,1724497866398,-500.0,0.00014246,2]
[335807016,1724497866407,-500.0,0.00014246,2]
[335807017,1724497866417,-654.01,0.00014246,2]
[335807018,1724497866427,-500.0,0.00014246,2]
[335807019,1724497866436,-782.0,0.00014246,2]
[335807020,1724497866445,-500.0,0.00014246,2]
[335807021,1724497866455,-500.0,0.00014246,2]
[335807022,1724497866464,-500.0,0.00014246,2]
[335807023,1724497866474,-500.0,0.00014246,2]
[335807024,1724497866483,-517.68,0.00014246,2]
[335807025,1724497866494,-500.0,0.00014246,2]
[335807026,1724497866503,-500.0,0.00014246,2]
[335807027,1724497866513,-155.74371176,0.00014246,2]
[335807028,1724497866522,-500.0,0.00014246,2]
[335807029,1724497866531,-204.026499,0.00014246,2]
[335807030,1724497866541,-204.026499,0.00014246,2]
[335807031,1724497866550,-204.026499,0.00014246,2]
[335807032,1724497866559,-204.026499,0.00014246,2]
[335807033,1724497866569,-204.026499,0.00014246,2]
[335807034,1724497866579,-204.026498,0.00014246,2]
[335807035,1724497866589,-573.74,0.00014246,2]
[335807036,1724497866599,-619.9709952,0.00014246,2]
[335807037,1724497866609,-500.0,0.00014246,2]
[335807038,1724497866620,-248.258798,0.00014246,2]
[335807039,1724497866629,-676.95,0.00014246,2]
[335807040,1724497866639,-500.0,0.00014246,2]
[335807041,1724497866649,-500.0,0.00014246,2]
[335807042,1724497866659,-613.11,0.00014246,2]
[335807043,1724497866669,-500.0,0.00014246,2]
[335807044,1724497866679,-500.0,0.00014246,2]
[335807045,1724497866688,-706.58,0.00014246,2]
[335807046,1724497866698,-500.0,0.00014246,2]
[335807047,1724497866707,-542.44603418,0.00014246,2]
[335807048,1724497866716,-500.0,0.00014246,2]
[335807049,1724497866726,-1179.83,0.00014246,2]
[335807050,1724497866735,-579.2,0.00014246,2]
[335807051,1724497866746,-500.0,0.00014246,2]
[335807052,1724497866756,-500.0,0.00014246,2]
[335807053,1724497866768,-500.0,0.00014246,2]
[335807054,1724497866778,-500.0,0.00014246,2]
[335807055,1724497866787,-388.68899463,0.00014246,2]
[335807056,1724497866796,-500.0,0.00014246,2]
[335807057,1724497866805,-869.6,0.00014246,2]
[335807058,1724497866814,-500.0,0.00014246,2]
[335807059,1724497866825,-2488.34,0.00014246,2]
[335807060,1724497866834,-500.0,0.00014246,2]
[335807061,1724497866844,-500.0,0.00014246,2]
[335807062,1724497866856,-500.0,0.00014246,2]
[335807063,1724497866867,-500.0,0.00014246,2]
[335807064,1724497866877,-999.78637927,0.00014246,2]
[335807065,1724497867703,-543.85848,0.00013699,2]
[335807066,1724497867712,-543.85848,0.00013699,2]
[335807067,1724497867722,-3453.135393,0.00013699,2]
[335807068,1724497867732,-543.85848,0.00013699,2]
[335807069,1724497867743,-3453.135393,0.00013972,2]
[335807070,1724497867753,-3453.135393,0.00013972,2]
[335807071,1724497867763,-3453.135393,0.00013972,2]
[335807072,1724497867772,-3453.135393,0.00013972,2]
[335807073,1724497867782,-543.85848,0.00013972,2]
[335807074,1724497867792,-543.85848,0.00013972,2]
[335807075,1724497867802,-78.77010673,0.00014246,2]
[335807076,1724497867812,-1078.556486,0.00014246,2]
[335807077,1724497867822,-1078.556486,0.00014246,2]
[335807078,1724497867832,-500.0,0.00014246,2]
[335807079,1724497867842,-500.0,0.00014246,2]
[335807080,1724497867855,-1200.0,0.00014246,2]
[335807081,1724497867865,-852.55,0.00014246,2]
[335807082,1724497867874,-1200.0,0.00014246,2]
[335807083,1724497867884,-398.59289053,0.00014246,2]
[335807084,1724497867898,-801.40710947,0.00014246,2]
[335807085,1724497867908,-1200.0,0.00014246,2]
[335807086,1724497867918,-1078.556486,0.00014246,2]
[335807087,1724497867929,-1200.0,0.00014246,2]
[335807088,1724497867939,-1078.556486,0.00014246,2]
[335807089,1724497867950,-1078.55647882,0.00014246,2]
[335807090,1724497867960,-500.0,0.00014246,2]
[335807091,1724497867970,-1200.0,0.00014246,2]
[335807092,1724497867980,-1200.0,0.00014246,2]
[335807093,1724497867990,-1200.0,0.00014246,2]
[335807094,1724497867999,-1200.0,0.00014246,2]
[335807095,1724497868010,-1200.0,0.00014246,2]
[335807096,1724497868020,-597.36,0.00014246,2]
[335807097,1724497868030,-1200.0,0.00014246,2]
[335807098,1724497868040,-1861.39,0.00014246,2]
[335807099,1724497868049,-531.46,0.00014246,2]
[335807100,1724497868059,-1200.0,0.00014246,2]
[335807101,1724497868068,-1200.0,0.00014246,2]
[335807102,1724497868078,-1200.0,0.00014246,2]
[335807103,1724497868087,-1200.0,0.00014246,2]
[335807104,1724497868096,-763.56,0.00014246,2]
[335807105,1724497868106,-1200.0,0.00014246,2]
[335807106,1724497868116,-671.71,0.00014246,2]
[335807107,1724497868128,-1200.0,0.00014246,2]
[335807108,1724497868137,-1200.0,0.00014246,2]
[335807109,1724497868146,-1200.0,0.00014246,2]
[335807110,1724497868156,-1200.0,0.00014246,2]
[335807111,1724497868166,-1200.0,0.00014246,2]
[335807112,1724497868175,-1200.0,0.00014246,2]
[335807113,1724497868185,-1200.0,0.00014246,2]
[335807114,1724497868195,-1200.0,0.00014246,2]
[335807115,1724497868205,-1200.0,0.00014246,2]
[335807116,1724497868214,-1200.0,0.00014246,2]
[335807117,1724497868224,-1200.0,0.00014246,2]
[335807118,1724497868233,-1200.0,0.00014246,2]
[335807119,1724497868243,-1200.0,0.00014246,2]
[335807120,1724497868253,-1200.0,0.00014246,2]
[335807121,1724497868263,-500.0,0.00014246,2]
[335807122,1724497868272,-1200.0,0.00014246,2]
[335807123,1724497868281,-1200.0,0.00014246,2]
[335807124,1724497868291,-1200.0,0.00014246,2]
[335807125,1724497868300,-500.0,0.00014246,2]
[335807126,1724497868310,-1200.0,0.00014246,2]
[335807127,1724497868320,-1200.0,0.00014246,2]
[335807128,1724497868330,-2754.24,0.00014246,2]
[335807129,1724497868341,-1200.0,0.00014246,2]
[335807130,1724497868351,-1200.0,0.00014246,2]
[335807131,1724497868360,-1200.0,0.00014246,2]
[335807132,1724497868369,-1200.0,0.00014246,2]
[335807133,1724497868379,-500.0,0.00014246,2]
[335807134,1724497868389,-1200.0,0.00014246,2]
[335807135,1724497868399,-1200.0,0.00014246,2]
[335807136,1724497868408,-500.0,0.00014246,2]
[335807137,1724497868418,-1200.0,0.00014246,2]
[335807138,1724497868428,-500.0,0.00014246,2]
[335807139,1724497868438,-1200.0,0.00014246,2]
[335807140,1724497868448,-1200.0,0.00014246,2]
[335807141,1724497868457,-1200.0,0.00014246,2]
[335807142,1724497868468,-1200.0,0.00014246,2]
[335807143,1724497868478,-1200.0,0.00014246,2]
[335807144,1724497868490,-1200.0,0.00014246,2]
[335807145,1724497868501,-1200.0,0.00014246,2]
[335807146,1724497868511,-500.0,0.00014246,2]
[335807147,1724497868520,-1200.0,0.00014246,2]
[335807148,1724497868531,-1200.0,0.00014246,2]
[335807149,1724497868543,-221.255046,0.00014246,2]
[335807150,1724497868554,-1200.0,0.00014246,2]
[335807151,1724497868564,-221.255046,0.00014246,2]
[335807152,1724497868575,-1200.0,0.00014246,2]
[335807153,1724497868585,-500.0,0.00014246,2]
[335807154,1724497868599,-1200.0,0.00014246,2]
[335807155,1724497868610,-221.255046,0.00014246,2]
[335807156,1724497868620,-1200.0,0.00014246,2]
[335807157,1724497868631,-1200.0,0.00014246,2]
[335807158,1724497868641,-1200.0,0.00014246,2]
[335807159,1724497868651,-1200.0,0.00014246,2]
[335807160,1724497868661,-1200.0,0.00014246,2]
[335807161,1724497868672,-1200.0,0.00014246,2]
[335807162,1724497868682,-1200.0,0.00014246,2]
[335807163,1724497868692,-221.255046,0.00014246,2]
[335807164,1724497868703,-1192.09,0.00014246,2]
[335807165,1724497868713,-1200.0,0.00014246,2]
[335807166,1724497868723,-221.255046,0.00014246,2]
[335807167,1724497868732,-1200.0,0.00014246,2]
[335807168,1724497868744,-221.255055,0.00014246,2]
[335807169,1724497868753,-500.0,0.00014246,2]
[335807170,1724497868763,-1200.0,0.00014246,2]
[335807171,1724497868773,-1200.0,0.00014246,2]
[335807172,1724497868783,-1200.0,0.00014246,2]
[335807173,1724497868792,-1200.0,0.00014246,2]
[335807174,1724497868804,-1200.0,0.00014246,2]
[335807175,1724497868814,-500.0,0.00014246,2]
[335807176,1724497868825,-1200.0,0.00014246,2]
[335807177,1724497868836,-1200.0,0.00014246,2]
[335807178,1724497868847,-1200.0,0.00014246,2]
[335807179,1724497868860,-1200.0,0.00014246,2]
[335807180,1724497868870,-1200.0,0.00014246,2]
[335807181,1724497868881,-518.37953854,0.00014246,2]
[335807182,1724497868891,-1200.0,0.00014246,2]
[335807183,1724497868902,-197.123887,0.00014246,2]
[335807184,1724497868912,-1200.0,0.00014246,2]
[335807185,1724497868923,-197.123887,0.00014246,2]
[335807186,1724497868935,-1200.0,0.00014246,2]
[335807187,1724497868945,-197.123887,0.00014246,2]
[335807188,1724497868955,-1200.0,0.00014246,2]
[335807189,1724497868966,-3008.009302,0.00014246,2]
[335807190,1724497868977,-3008.009302,0.00014246,2]
[335807191,1724497868987,-1200.0,0.00014246,2]
[335807192,1724497868998,-3008.009302,0.00014246,2]
[335807193,1724497869008,-1200.0,0.00014246,2]
[335807194,1724497869018,-1200.0,0.00014246,2]
[335807195,1724497869028,-500.0,0.00014246,2]
[335807196,1724497869038,-1200.0,0.00014246,2]
[335807197,1724497869048,-1200.0,0.00014246,2]
[335807198,1724497869057,-1200.0,0.00014246,2]
[335807199,1724497869071,-502.82,0.00014246,2]
[335807200,1724497869082,-1200.0,0.00014246,2]
[335807201,1724497869092,-1200.0,0.00014246,2]
[335807202,1724497869102,-855.88,0.00014246,2]
[335807203,1724497869112,-197.123887,0.00014246,2]
[335807204,1724497869122,-1200.0,0.00014246,2]
[335807205,1724497869132,-500.0,0.00014246,2]
[335807206,1724497869142,-197.123887,0.00014246,2]
[335807207,1724497869153,-1200.0,0.00014246,2]
[335807208,1724497869163,-3008.009302,0.00014246,2]
[335807209,1724497869173,-197.123894,0.00014246,2]
[335807210,1724497869182,-1200.0,0.00014246,2]
[335807211,1724497869192,-3008.009302,0.00014246,2]
[335807212,1724497869202,-1200.0,0.00014246,2]
[335807213,1724497869211,-3008.009295,0.00014246,2]
[335807214,1724497869221,-1200.0,0.00014246,2]
[335807215,1724497869231,-1200.0,0.00014246,2]
[335807216,1724497869241,-1200.0,0.00014246,2]
[335807217,1724497869251,-1200.0,0.00014246,2]
[335807218,1724497869262,-1200.0,0.00014246,2]
[335807219,1724497869271,-229.26567484,0.00014246,2]
[335807220,1724497869282,-1200.0,0.00014246,2]
[335807221,1724497869291,-1200.0,0.00014246,2]
[335807222,1724497869301,-668.94,0.00014246,2]
[335807223,1724497869311,-500.0,0.00014246,2]
[335807224,1724497869320,-1200.0,0.00014246,2]
[335807225,1724497869330,-1200.0,0.00014246,2]
[335807226,1724497869340,-500.0,0.00014246,2]
[335807227,1724497869350,-1200.0,0.00014246,2]
[335807228,1724497869360,-500.0,0.00014246,2]
[335807229,1724497869370,-1200.0,0.00014246,2]
[335807230,1724497869379,-639.65,0.00014246,2]
[335807231,1724497869390,-738.84,0.00014246,2]
[335807232,1724497869400,-634.8,0.00014246,2]
[335807233,1724497869411,-500.0,0.00014246,2]
[335807234,1724497869422,-500.0,0.00014246,2]
[335807235,1724497869432,-1007.13,0.00014246,2]
[335807236,1724497869441,-217.118537,0.00014246,2]
[335807237,1724497869518,-500.0,0.00014246,2]
[335807238,1724497869528,-217.118537,0.00014246,2]
[335807239,1724497869537,-217.118537,0.00014246,2]
[335807240,1724497869547,-569.06,0.00014246,2]
[335807241,1724497869557,-500.0,0.00014246,2]
[335807242,1724497869566,-500.0,0.00014246,2]
[335807243,1724497869576,-2424.41,0.00014246,2]
[335807244,1724497869586,-217.118537,0.00014246,2]
[335807245,1724497869595,-217.118537,0.00014246,2]
[335807246,1724497869605,-217.118528,0.00014246,2]
[335807247,1724497869614,-834.01,0.00014246,2]
[335807248,1724497869623,-500.0,0.00014246,2]
[335807249,1724497869632,-500.0,0.00014246,2]
[335807250,1724497869642,-500.0,0.00014246,2]
[335807251,1724497869652,-500.0,0.00014246,2]
[335807252,1724497869663,-500.0,0.00014246,2]
[335807253,1724497869673,-958.854083,0.00014246,2]
[335807254,1724497869683,-958.854083,0.00014246,2]
[335807255,1724497869693,-958.854083,0.00014246,2]
[335807256,1724497869703,-404.16637314,0.00014246,2]
[335807257,1724497869713,-958.854083,0.00014246,2]
[335807258,1724497869722,-958.854083,0.00014246,2]
[335807259,1724497869732,-500.0,0.00014246,2]
[335807260,1724497869741,-500.0,0.00014246,2]
[335807261,1724497869750,-958.854091,0.00014246,2]
[335807262,1724497869760,-500.0,0.00014246,2]
[335807263,1724497869769,-500.0,0.00014246,2]
[335807264,1724497869779,-500.0,0.00014246,2]
[335807265,1724497869788,-818.51,0.00014246,2]
[335807266,1724497869797,-500.0,0.00014246,2]
[335807267,1724497869807,-189.63316398,0.00014246,2]
[335807268,1724497870152,-350.91683602,0.00014246,2]
[335807269,1724497870162,-187.06316548,0.00014246,2]
[335807270,1724497870175,-537.18683452,0.00014246,2]
[335807271,1724497870186,-775.17,0.00014246,2]
[335807272,1724497870196,-500.0,0.00014246,2]
[335807273,1724497870206,-172.23763435,0.00014246,2]
[335807274,1724497870215,-1194.68,0.00014246,2]
[335807275,1724497870225,-500.0,0.00014246,2]
[335807276,1724497870235,-500.0,0.00014246,2]
[335807277,1724497870244,-500.0,0.00014246,2]
[335807278,1724497870254,-500.0,0.00014246,2]
[335807279,1724497870265,-1305.2,0.00014246,2]
[335807280,1724497870274,-395.68985819,0.00014246,2]
[335807281,1724497870284,-500.0,0.00014246,2]
[335807282,1724497870295,-500.0,0.00014246,2]
[335807283,1724497870304,-738.6,0.00014246,2]
[335807284,1724497870314,-1670.72,0.00014246,2]
[335807285,1724497870324,-704.85,0.00014246,2]
[335807286,1724497870335,-500.0,0.00014246,2]
[335807287,1724497870345,-2185.27,0.00014246,2]
[335807288,1724497870355,-500.0,0.00014246,2]
[335807289,1724497870366,-162.68305542,0.00014246,2]
[335807291,1724497905262,4722.19913161,0.00012086,2]
[335807329,1724498149148,10901.0,0.00027,120]
[335807332,1724498174688,1036.9657843,0.00011999,2]
[335807339,1724498406002,1075.78750041,0.00012111,2]
[335807357,1724498620761,22006.00212483,0.00011999,2]
[335807358,1724498671365,200.0,0.00020589,120]
[335807359,1724498673894,744.4024012,0.00011416,2]
[335807361,1724498736140,-300.0,0.00012136,2]
[335807362,1724498736166,-300.0,0.00012136,2]
[335807363,1724498736194,-12866.70233842,0.00012137,2]
[335807364,1724498736222,-250.0,0.00012237,2]
[335807365,1724498736247,-250.0,0.00012271,2]
[335807366,1724498736271,-233.53534236,0.00012287,2]
[335807368,1724498736296,-250.0,0.00012304,2]
[335807369,1724498736322,-250.0,0.00012338,2]
[335807370,1724498736346,-10349.18577549,0.00012356,2]
[335807371,1724498740345,500.0,0.0001211,2]
[335807373,1724498754433,220.656719,0.00011863,2]
[335807374,1724498754657,220.656719,0.00011895,2]
[335807375,1724498754897,220.656719,0.00011928,2]
[335807376,1724498755115,220.656719,0.0001196,2]
[335807377,1724498755333,220.656719,0.00011993,2]
[335807378,1724498755539,220.656719,0.00012025,2]
[335807379,1724498755742,220.656719,0.00012058,2]
[335807380,1724498755946,220.656719,0.00012091,2]
[335807387,1724498825117,-220.656719,0.00012123,2]
[335807388,1724498825144,-220.656719,0.00012156,2]
[335807389,1724498825167,-300.0,0.00012162,2]
[335807390,1724498825188,-300.0,0.00012162,2]
[335807391,1724498825211,-2472.50270863,0.00012163,2]
[335807392,1724498830106,-220.656719,0.00012188,2]
[335807393,1724498830132,-220.656719,0.00012221,2]
[335807394,1724498830157,-220.656719,0.00012253,2]
[335807395,1724498830183,-220.656719,0.00012286,2]
[335807396,1724498830208,-220.656719,0.00012318,2]
[335807397,1724498830231,-220.656719,0.00012351,2]
[335807398,1724498830256,-220.656719,0.00012383,2]
[335807399,1724498830278,-220.656719,0.00012416,2]
[335807400,1724498830305,-220.656719,0.00012449,2]
[335807401,1724498830328,-220.656719,0.00012481,2]
[335807402,1724498830349,-500.0,0.00012519,2]
[335807403,1724498830370,-5347.7444723,0.00012629,2]
[335807404,1724498830391,-2713.96502114,0.00012629,2]
[335807405,1724498830413,-499.76637688,0.00012782,2]
[335807407,1724498838091,-1893.85996049,0.0001212,2]
[335807411,1724498885882,42432.2789175,0.00011987,2]
[335807416,1724498946133,-571.11550065,0.000125,2]
[335807424,1724498977011,1926.07418041,0.00012551,2]
[335807425,1724498983981,273.37336231,0.00012111,2]
[335807428,1724499000397,273.37336231,0.00012111,2]
[335807429,1724499002531,24900.0,0.00011979,2]
[335807431,1724499016413,273.37336231,0.00012111,2]
[335807432,1724499031333,349.0318202,0.00012551,2]
[335807433,1724499031662,218.74217155,0.00012551,2]
[335807435,1724499032260,273.37336231,0.00012111,2]
[335807448,1724499032641,-1614.23476324,0.00012629,2]
[335807449,1724499032651,-204.50536527,0.00012779,2]
[335807451,1724499032661,-802.81641523,0.00012779,2]
[335807453,1724499032671,-817.95411776,0.00012782,2]
[335807455,1724499032684,-693.786163,0.00012877,2]
[335807457,1724499032696,-154.71377951,0.00012886,2]
[335807459,1724499032706,-404.63763456,0.00012886,2]
[335807461,1724499032715,-300.0,0.00012897,2]
[335807463,1724499032725,-300.0,0.00012897,2]
[335807465,1724499032735,-7329.29166677,0.00012898,2]
[335807469,1724499032780,-305.84891193,0.00012898,2]
[335807472,1724499032793,-1213.41972989,0.00012898,2]
[335807473,1724499032802,-155.04440811,0.00012898,2]
[335807475,1724499032812,-155.1301764,0.00012898,2]
[335807477,1724499032822,-180.88265675,0.00012898,2]
[335807479,1724499032832,-320.43172091,0.00012898,2]
[335807480,1724499032842,-811.47145884,0.00012898,2]
[335807481,1724499032853,-180.88265675,0.00012898,2]
[335807482,1724499032863,-210.30219425,0.00012898,2]
[335807483,1724499032873,-5017.62367848,0.000129,2]
[335807484,1724499032884,-154.72922386,0.00012934,2]
[335807485,1724499032896,-227.5084395,0.00012934,2]
[335807486,1724499032906,-413.88106461,0.00012934,2]
[335807487,1724499032917,-154.91707256,0.00012934,2]
[335807488,1724499032927,-160.49093254,0.00012934,2]
[335807489,1724499032938,-196.90814632,0.00012934,2]
[335807490,1724499032948,-188.65696378,0.00012971,2]
[335807491,1724499032958,-493.58061031,0.00012971,2]
[335807492,1724499032967,-154.84989578,0.00012971,2]
[335807493,1724499032977,-569.66960368,0.00012971,2]
[335807494,1724499032987,-154.93008371,0.00012971,2]
[335807495,1724499032997,-155.34567641,0.00012971,2]
[335807496,1724499033006,-342.82972832,0.00012971,2]
[335807497,1724499033016,-467.80986898,0.00012971,2]
[335807498,1724499033026,-156.30170795,0.00012971,2]
[335807499,1724499033035,-178.88110628,0.00012971,2]
[335807500,1724499033044,-154.71377951,0.00012971,2]
[335807501,1724499033054,-157.17582995,0.00012971,2]
[335807502,1724499033064,-665.79988618,0.00012971,2]
[335807503,1724499033074,-154.71377951,0.00012985,2]
[335807504,1724499033083,-154.71377951,0.00012985,2]
[335807505,1724499033093,-603.39236087,0.00012985,2]
[335807506,1724499033102,-157.2181013,0.00012985,2]
[335807507,1724499033112,-695.14803561,0.00012989,2]
[335807508,1724499033122,-521.61080417,0.00012989,2]
[335807509,1724499033131,-495.40667807,0.00012989,2]
[335807510,1724499033145,-154.71377951,0.00012989,2]
[335807511,1724499033155,-862.83835129,0.00013,2]
[335807512,1724499033165,-500.0,0.00013178,2]
[335807513,1724499033175,-2306.43287455,0.00013219,2]
[335807514,1724499033190,-11564.74693409,0.00013219,2]
[335807515,1724499036949,3620.21503602,0.00012551,2]
[335807536,1724499038908,-200.34276677,0.00012934,2]
[335807537,1724499038918,-154.71377951,0.00012934,2]
[335807538,1724499038928,-413.88106461,0.00012934,2]
[335807539,1724499038938,-154.71377951,0.00012971,2]
[335807540,1724499038949,-223.12053068,0.00012971,2]
[335807541,1724499038959,-10132.39729742,0.00013219,2]
[335807542,1724499038969,-2908.79763198,0.00013296,2]
[335807543,1724499038979,-5017.62367846,0.00013299,2]
[335807544,1724499038990,-32861.54205972,0.00013306,2]
[335807545,1724499039364,-2421.4498458,0.00013306,2]
[335807546,1724499039376,-33824.67522702,0.00013306,2]
[335807547,1724499039403,-76382.91384746,0.00013306,2]
[335807548,1724499039412,-24003.57710605,0.00013314,2]
[335807549,1724499039422,-145490.58098,0.00013318,2]
[335807550,1724499039432,-76338.38633415,0.00013328,2]
[335807551,1724499039441,-306.47265928,0.00013333,2]
[335807552,1724499039451,-449.97377135,0.00013373,2]
[335807553,1724499039461,-535.188391,0.00013373,2]
[335807554,1724499039471,-500.0,0.00013373,2]
[335807555,1724499039481,-500.0,0.00013373,2]
[335807556,1724499039491,-500.0,0.00013373,2]
[335807557,1724499039500,-47691.68621792,0.00013377,2]
[335807558,1724499039604,-2783.26927292,0.00013377,2]
[335807566,1724499040947,-154.71377951,0.00012971,2]
[335807567,1724499040957,-347.2683082,0.00013377,2]
[335807568,1724499040969,-657.14970041,0.00013377,2]
[335807569,1724499040991,-94011.20748055,0.00013377,2]
[335807570,1724499041002,-145490.58098,0.00013396,2]
[335807571,1724499041013,-150.112233,0.000134,2]
[335807572,1724499041023,-24003.57710605,0.00013409,2]
[335807573,1724499041033,-209.7598205,0.00013496,2]
[335807574,1724499041042,-301.66413705,0.00013497,2]
[335807575,1724499041052,-150.112233,0.000135,2]
[335807576,1724499041063,-150.112233,0.000135,2]
[335807577,1724499041073,-150.112233,0.000135,2]
[335807578,1724499041083,-24003.57710605,0.00013503,2]
[335807579,1724499041095,-478.70173219,0.00013592,2]
[335807580,1724499041104,-155.24629628,0.00013596,2]
[335807581,1724499041115,-22006.00212483,0.00013596,2]
[335807582,1724499041126,-24003.57710605,0.00013598,2]
[335807583,1724499041137,-150.112233,0.000136,2]
[335807584,1724499041148,-150.112233,0.000136,2]
[335807585,1724499041160,-6556.81942638,0.000136,2]
[335807586,1724499041170,-603.39053838,0.00013673,2]
[335807587,1724499041180,-504.78112766,0.00013673,2]
[335807588,1724499041191,-161.95323312,0.00013673,2]
[335807589,1724499041209,-530.40322866,0.00013673,2]
[335807590,1724499041220,-500.0,0.00013673,2]
[335807591,1724499041232,-500.0,0.00013673,2]
[335807592,1724499041243,-600.0,0.00013676,2]
[335807593,1724499041254,-21346.62505567,0.00013697,2]
[335807594,1724499041264,-502.96034577,0.00013698,2]
[335807595,1724499041276,-500.0,0.00013698,2]
[335807596,1724499041287,-504.91529324,0.00013698,2]
[335807597,1724499041296,-500.0,0.00013698,2]